{"text_format":"1","workbook":"xlsx","n_sheets":6,"sheets":["Титул","Сводные","План уч проц","Лист3","Календарный график","Перечень кабинетов"],"not_rendered":{"charts":0,"images":0,"macros":1,"external_links":1,"defined_names":25,"comments":0,"pivot_tables":0},"unopened":[],"bounds":{"document_bytes":16777216,"sheet_cells":100000,"rows_first":2000,"rows_last":500,"rows_between":2000,"halvings":0,"cell_chars":16384,"cell_head_chars":4096},"cells_cut":0,"cells_raw":0,"read":"whole","date_system":"1900"}

{"sheet":"Титул","index":0,"n_rows":31,"n_cols":47,"rows_kept":31,"cut":false,"hidden":false,"merged":[[30,26,30,29],[30,31,30,39],[16,5,16,10],[3,36,3,46],[2,36,2,45],[29,26,29,29],[29,30,29,46],[26,26,26,45],[25,26,25,45],[27,26,27,34],[27,35,27,45],[28,26,28,37],[28,44,28,46],[28,42,28,43],[28,39,28,40],[1,36,1,45],[19,9,19,36],[24,26,24,33],[24,34,24,45],[4,36,4,46],[5,37,5,38],[5,43,5,44],[11,14,11,24],[12,1,12,42],[5,40,5,42],[17,11,17,37],[13,2,13,44],[14,9,14,40],[16,11,16,37]]}
[]
[null,null,null,null,null,null,null,null,null,null,null,null,null,null,null,null,null,null,null,null,null,null,null,null,null,null,null,null,null,null,null,null,null,null,null,null,"Утверждаю:"]
[null,null,null,null,null,null,null,null,null,null,null,null,null,null,null,null,null,null,null,null,null,null,null,null,null,null,null,null,null,null,null,null,null,null,null,null,"Директор ______________"]
[null,null,null,null,null,null,null,null,null,null,null,null,null,null,null,null,null,null,null,null,null,null,null,null,null,null,null,null,null,null,null,null,null,null,null,null,"ГБОУ СПО \"МППК\""]
[null,null,null,null,null,null,null,null,null,null,null,null,null,null,null,null,null,null,null,null,null,null,null,null,null,null,null,null,null,null,null,null,null,null,null,null,"М.Н. Верхотурцев"]
[null,null,null,null,null,null,null,null,null,null,null,null,null,null,null,null,null,null,null,null,null,null,null,null,null,null,null,null,null,null,null,null,null,null,null,null,"«",7,null,"»","июня",null,null,201,null,3,"г"]
[]
[]
[]
[]
[]
[null,null,null,null,null,null,null,null,null,null,null,null,null,null,"УЧЕБНЫЙ ПЛАН"]
[null,"Государственного бюджетного образовательного учреждения среднего профессионального образования "]
[null,null,"«Мишкинский профессионально-педагогический колледж»"]
[null,null,null,null,null,null,null,null,null,"по  специальности среднего профессионального образования"]
[]
[null,null,null,null,null,250401,null,null,null,null,null,"Технология деревообработки"]
[]
[]
[null,null,null,null,null,null,null,null,null,"по программе базовой подготовки"]
[]
[]
[]
[]
[null,null,null,null,null,null,null,null,null,null,null,null,null,null,null,null,null,null,null,null,null,null,null,null,null,null,"Квалификация:",null,null,null,null,null,null,null,"Техник-технолог"]
[]
[]
[null,null,null,null,null,null,null,null,null,null,null,null,null,null,null,null,null,null,null,null,null,null,null,null,null,null,"Форма обучения-  ",null,null,null,null,null,null,null,null,"очная"]
[null,null,null,null,null,null,null,null,null,null,null,null,null,null,null,null,null,null,null,null,null,null,null,null,null,null,"Нормативный срок обучения- ",null,null,null,null,null,null,null,null,null,null,null,null,3,null,"г",10,null,"мес"]
[null,null,null,null,null,null,null,null,null,null,null,null,null,null,null,null,null,null,null,null,null,null,null,null,null,null,"На базе",null,null,null,"основного общего образования"]
[null,null,null,null,null,null,null,null,null,null,null,null,null,null,null,null,null,null,null,null,null,null,null,null,null,null,"Профиль",null,null,null,null,"технический"]

{"sheet":"Сводные","index":1,"n_rows":12,"n_cols":11,"rows_kept":12,"cut":false,"hidden":false,"merged":[[2,7,4,7],[2,8,4,8],[3,3,4,3],[0,0,0,8],[2,0,4,0],[2,1,4,1],[2,2,4,2],[2,3,2,4],[2,5,4,5],[2,6,4,6]]}
["Сводные данные по бюджету времени (в неделях)"]
[]
["Курсы","Обучение по дисциплинам и междисциплинарным курсам","Учебная практика","Производственная практика",null,"Промежуточная аттестация","Государственная итоговая аттестация","Каникулы","Всего"]
[null,null,null,"по профилю специальности","преддипломная"]
[null,null,null,null,"(для СПО)"]
[1,2,3,4,5,6,7,8,9]
["I курс",{"$f":"I7-H7-G7-F7-E7-D7-C7","v":39},null,null,null,2,null,11,52]
["II курс",{"$f":"I8-H8-G8-F8-E8-D8-C8","v":36},4,null,null,1,null,11,52]
["III курс",27,5,8,null,2,null,10,52]
["VI курс",18,3,8,4,2,6,2,43]
["Всего",{"$f":"SUM(B7:B10)","v":120},12,16,4,7,6,34,199]
[null,null,null,null,null,null,null,null,null,null,"Удалить строку"]

{"sheet":"План уч проц","index":2,"n_rows":77,"n_cols":20,"rows_kept":77,"cut":false,"hidden":false,"merged":[[66,0,66,1],[72,0,72,6],[70,0,71,6],[8,7,11,7],[8,8,11,8],[8,5,11,5],[67,0,67,1],[2,0,7,0],[8,0,11,0],[8,1,11,1],[8,4,11,4],[8,3,11,3],[8,2,11,2],[2,2,6,4],[2,1,7,1],[6,18,6,19],[2,12,5,19],[6,5,7,5],[6,6,7,6],[6,12,6,13],[6,14,6,15],[6,16,6,17],[2,5,5,10],[6,7,6,10],[7,8,7,10],[2,11,11,11],[8,6,11,6],[8,9,11,9],[8,10,11,10],[76,8,76,11],[76,0,76,6],[70,7,76,7],[74,0,74,6],[75,0,75,6],[73,0,73,6],[70,8,70,11],[71,8,71,11],[72,8,72,11],[73,8,73,11],[74,8,74,11],[75,8,75,11]]}
[]
[null,null,null,null,null,null,null,null,null,null,null,null,null,null,null,null,null,null,"Технич"]
["   Индекс","Наименование циклов, дисциплин, профессиональных модулей, МДК, практик","Форма промежуточной аттестации",null,null,"Учебная нагрузка обучающихся (час.)",null,null,null,null,null,"Учебная и производственная практика","Распределение обязательной нагрузки по курсам и семестрам[2] (час. в семестр)"]
[]
[]
[]
[null,null,null,null,null,"максимальная","самостоятельная работа","Обязательная аудиторная",null,null,null,null,"I курс",null,"II курс",null,"III курс",null,"IV курс"]
[null,null,"З","ДЗ","Э",null,null,"всего занятий","в т. ч.",null,null,null,"1 семестр","2 семестр","3 семестр","4 семестр","5 семестр","6 семестр","7 семестр","8 семестр"]
[null,null,null,null,null,null,null,null,"лекций, уроков, семинаров","лаб. и практ. занятий","Курсовая",null,"сем.","сем.","сем.","сем.","сем.","сем.","сем.","сем."]
[null,null,null,null,null,null,null,null,null,null,null,null,17,22,17,23,16,24,16,13]
[null,null,null,null,null,null,null,null,null,null,null,null,17,22,15,21,11,16,10,8]
[null,null,null,null,null,null,null,null,null,null,null,null,"нед","нед","нед","нед","нед","нед","нед","нед"]
[1,2,3,4,5,6,7,8,9,10,11,12,13,14,15,16,17,18,19,20]
["О.00","Общеобразовательный цикл",null,null,null,null,null,{"$f":"SUM(H15:H26)","v":1404},null,null,null,null,{"$f":"SUM(M15:M26)","v":612},{"$f":"SUM(N15:N26)","v":792},{"$f":"SUM(O15:O66)/O10","v":128.70588235294119},140.52173913043478,115.875,120.75,119,109.53846153846153]
["ОДБ.01","Русский язык",null,null,2,null,null,{"$f":"SUM(M15:R15)","v":78},null,null,null,null,34,44]
["ОДБ.02","Литература",null,2,null,null,null,{"$f":"SUM(M16:R16)","v":117},null,null,null,null,51,66]
["ОДБ.03","Иностранный язык",null,2,null,null,null,117,null,null,null,null,51,66]
["ОДБ.04","История",null,2,null,null,null,78,null,null,null,null,34,44]
["ОДБ.05","Обществознание",null,2,null,null,null,78,null,null,null,null,34,44]
["ОДБ.06","Химия",null,2,null,null,null,78,null,null,null,null,34,44]
["ОДБ.07","Биология",null,2,null,null,null,78,null,null,null,null,34,44]
["ОДБ.08","Основы безопасности жизнедеятельности ",null,2,null,null,null,78,null,null,null,null,34,44]
["ОДБ.09","Физическая культура",null,2,null,null,null,117,null,null,null,null,51,66]
["ОДП.01","Математика",null,null,2,null,null,234,null,null,null,null,102,132]
["ОДП.02","Физика",null,null,2,null,null,195,null,null,null,null,85,110]
["ОДП.03","Информатика и ИКТ",null,2,null,null,null,156,null,null,null,null,68,88]
[null,"Всего по циклам ОПОП",null,null,null,{"$f":"F28+F33+F36","v":4374},{"$f":"G28+G33+G36","v":1458},{"$f":"H28+H33+H36","v":2916},{"$f":"I28+I33+I36","v":1429},{"$f":"J28+J33+J36","v":1487},80,{"$f":"L48","v":1008},null,null,{"$f":"O28+O33+O36","v":540},756,396,576,360,288]
["ОГСЭ.00","Общий гуманитарный и социально-экономический цикл ",null,null,null,{"$f":"SUM(F29:F32)","v":630},{"$f":"SUM(G29:G32)","v":210},420,{"$f":"SUM(I29:I32)","v":98},{"$f":"SUM(J29:J32)","v":322},null,null,null,null,{"$f":"SUM(O29:O32)","v":156},{"$f":"SUM(P29:P32)","v":84},44,64,40,32]
["ОГСЭ.01","Основы философии",null,3,null,54,{"$f":"F29-H29","v":6},{"$f":"SUM(O29:T29)","v":48},48,null,null,null,null,null,48]
["ОГСЭ.02","История",null,3,null,54,6,{"$f":"SUM(O30:T30)","v":48},48,null,null,null,null,null,48]
["ОГСЭ.03","Иностранный язык",null,8,null,198,36,{"$f":"SUM(O31:T31)","v":162},null,162,null,null,null,null,30,42,22,32,20,16]
["ОГСЭ.04","Физическая культура",null,"3,4,5,6,7,8",null,324,162,{"$f":"SUM(O32:T32)","v":162},2,160,null,null,null,null,30,42,22,32,20,16]
["ЕН.00","Математический и общий естественнонаучный цикл",null,null,null,{"$f":"SUM(F34:F35)","v":216},{"$f":"SUM(G34:G35)","v":72},{"$f":"SUM(H34:H35)","v":144},{"$f":"SUM(I34:I35)","v":32},{"$f":"SUM(J34:J35)","v":112},null,null,null,null,{"$f":"SUM(O34:O35)","v":60},38,46,0,0,0]
["ЕН.01","Математика",null,3,null,{"$f":"ROUNDDOWN(H34*1.5,0)","v":90},{"$f":"F34-H34","v":30},{"$f":"SUM(O34:T34)","v":60},24,36,null,null,null,null,60]
["ЕН.02","Информатика",null,5,null,126,{"$f":"F35-H35","v":42},{"$f":"SUM(O35:T35)","v":84},8,76,null,null,null,null,null,38,46]
["П.00","Профессиональный цикл ",null,null,null,{"$f":"F37+F48","v":3528},{"$f":"G37+G48","v":1176},{"$f":"H37+H48","v":2352},{"$f":"I37+I48","v":1299},{"$f":"J37+J48","v":1053},20,null,null,null,{"$f":"O37+O48","v":324},634,306,512,320,256]
["ОП.00","Общепрофессиональные дисциплины",null,null,null,{"$f":"SUM(F38:F47)","v":1447},{"$f":"SUM(G38:G47)","v":487},{"$f":"SUM(H38:H47)","v":960},{"$f":"SUM(I38:I47)","v":578},{"$f":"SUM(J38:J47)","v":382},null,null,null,null,{"$f":"SUM(O38:O47)","v":152},376,126,142,32,132]
["ОП.01","Инженерная графика",null,6,null,{"$f":"ROUNDDOWN(H38*1.5,0)","v":180},{"$f":"F38-H38","v":60},{"$f":"SUM(O38:T38)","v":120},40,80,null,null,null,null,30,90]
["ОП.02","Техническая механика",null,6,null,180,60,120,80,40,null,null,null,null,30,90]
["ОП.03","Древесиноведение и материаловедение",null,null,5,228,76,152,92,60,null,null,null,null,40,76,36]
["ОП.04","Метрология, стандартизация и сертификация",null,6,null,87,29,58,38,20,null,null,null,null,null,null,null,58]
["ОП.05","Электротехника и электроника",null,5,null,180,60,120,90,30,null,null,null,null,20,52,48]
["ОП.06","Гидротермическая обработка и консервирование древесины",null,8,null,228,76,152,102,50,null,null,null,null,null,null,null,52,32,68]
["ОП.07","Правовое обеспечение профессиональной деятельности",8,null,null,96,32,{"$f":"SUM(O44:V44)","v":64},44,20,null,null,null,null,null,null,null,null,null,64]
["ОП.08","Экономика организации",null,null,6,110,36,{"$f":"SUM(O45:T45)","v":74},50,24,20,null,null,null,null,null,42,32]
["ОП.09","Безопасность жизнедеятельности",null,4,null,110,42,{"$f":"SUM(O46:V46)","v":68},20,48,null,null,null,null,null,68]
["ОП.10","Охрана труда",3,null,null,48,16,{"$f":"SUM(O47:T47)","v":32},22,10,null,null,null,null,32]
["ПМ.00","Профессиональные модули",null,null,null,{"$f":"F49+F57+F62","v":2081},{"$f":"G49+G57+G62","v":689},1392,721,671,{"$f":"K49+K57+K62","v":60},{"$f":"L49+L57+L62","v":1008},{"$f":"M49+M57+M62","v":0},{"$f":"N49+N57+N62","v":0},{"$f":"O49+O57+O62","v":172},{"$f":"P49+P57+P62","v":258},{"$f":"Q49+Q57+Q62","v":180},{"$f":"R49+R57+R62","v":370},{"$f":"S49+S57+S62","v":288},{"$f":"T49+T57+T62","v":124}]
["ПМ.01","Разработка и внедрение технологических процессов деревообрабатывающих производств",null,null,"5(К)",{"$f":"SUM(F50:F54)","v":734},{"$f":"SUM(G50:G54)","v":244},490,343,147,30,{"$f":"SUM(L55:L56)","v":252},null,null,172,258,60,0,0,0]
["МДК.01.01","Лесопильное производство",null,null,4,{"$f":"ROUNDDOWN(H50*1.5,0)","v":147},{"$f":"F50-H50","v":49},{"$f":"SUM(O50:T50)","v":98},66,32,null,null,null,null,60,38]
["МДК.01.02","Мебельное и столярно-строительное производство",null,5,null,244,81,{"$f":"SUM(O51:T51)","v":163},123,40,null,null,null,null,60,76,27]
["МДК.01.03","Фанерное и литное производство",4,null,null,51,17,{"$f":"SUM(O52:T52)","v":34},14,20,null,null,null,null,null,34]
["МДК.01.04","Спичечное, тарное и другие деревообрабатывающие производства",4,null,null,48,16,{"$f":"SUM(O53:T53)","v":32},20,12,null,null,null,null,null,32]
["МДК.01.05","Технологическое оборудование деревообрабатывающего производства",null,5,null,244,81,{"$f":"SUM(O54:V54)","v":163},120,43,null,null,null,null,52,78,33]
["УП.01","Учебная пратика",4,null,null,216,72,144,null,null,null,{"$f":"SUM(N55:U55)","v":144},null,null,72,72]
["ПП.01","Производственная практика",5,null,null,null,null,null,null,null,null,{"$f":"SUM(N56:U56)","v":108},null,null,null,null,108]
["ПМ.02","Участие в организации производственной деятельности в рамках структурного подразделения деревообрабатывающего производства",null,null,"8(К)",{"$f":"SUM(F58:F59)","v":303},{"$f":"SUM(G58:G59)","v":101},202,142,60,30,{"$f":"SUM(L60:L61)","v":288},null,null,null,0,0,0,78,124]
["МДК.02.01","Управление структурным подразделением",null,null,8,{"$f":"ROUNDDOWN(H58*1.5,0)","v":198},{"$f":"F58-H58","v":66},{"$f":"SUM(O58:T58)","v":132},102,30,null,null,null,null,null,null,null,null,46,86]
["МДК.02.02","Аналих производственно - хозяйственной деятельности структурного подразделения",null,8,null,105,35,{"$f":"SUM(O59:T59)","v":70},40,30,null,null,null,null,null,null,null,null,32,38]
["УП.02","Учебная пратика",7,null,null,null,null,null,null,null,null,{"$f":"SUM(M60:U60)","v":72},null,null,null,null,null,null,72]
["ПП.02","Производственная практика",8,null,null,null,null,null,null,null,null,{"$f":"SUM(M61:U61)","v":216},null,null,null,null,null,null,36,180]
["ПМ.03","Выполнение работ по одной или нескольким профессиям рабочих, должностям служащих",null,null,"7(К)",{"$f":"SUM(F63:F64)","v":1044},344,{"$f":"SUM(H63:H64)","v":700},{"$f":"SUM(I63:I64)","v":236},464,null,{"$f":"L65+L66","v":468},null,null,{"$f":"O63+O64","v":0},{"$f":"P63+P64","v":0},120,370,210,0]
["МДК.03.01","Станочник деревообрабатывающих станков",null,7,null,{"$f":"ROUNDDOWN(H63*1.5,0)","v":579},{"$f":"F63-H63","v":193},{"$f":"SUM(O63:T63)","v":386},136,250,null,null,null,null,null,null,60,206,120]
["МДК.03.02","Станоник-распиловщик",null,7,null,465,151,{"$f":"SUM(O64:T64)","v":314},100,214,null,null,null,null,null,null,60,164,90]
["УП.03","Учебная практика",7,null,null,null,null,null,null,null,null,{"$f":"SUM(M65:U65)","v":216},null,null,null,null,72,108,36]
["ПП.03","Производственная практика",7,null,null,null,null,null,null,null,null,{"$f":"SUM(M66:U66)","v":252},null,null,null,null,null,180,72]
["Всего",null,null,null,null,{"$f":"SUM(G67+H67)","v":5778},{"$f":"SUM(G36+G33+G28+G14)","v":1458},{"$f":"SUM(H36+H33+H28+H14)","v":4320},{"$f":"SUM(I36+I33+I28+I14)","v":1429},{"$f":"SUM(J36+J33+J28+J14)","v":1487},60,{"$f":"L48","v":1008},{"$f":"SUM(M15:M66)","v":612},{"$f":"SUM(N15:N66)","v":792},{"$f":"O71+O73+O74","v":612},{"$f":"P71+P73+P74","v":828},576,864,576,468]
["Кол-во часов в неделю",null,null,null,null,null,null,null,null,null,null,null,{"$f":"SUM(M15:M26)/M11","v":36},{"$f":"SUM(N15:N26)/N11","v":36},{"$f":"O67/O10","v":36},36,36,36,36,36]
["ПДП","Преддипломная практика ",null,null,null,null,null,null,null,null,null,null,null,null,null,null,null,null,null,144]
["ГИА","Государственная итоговая аттестация",null,null,null,null,null,null,null,null,null,null,null,null,null,null,null,null,null,216]
["Консультации на учебную группу по 100 часов в год (всего 400 час.)",null,null,null,null,null,null,"Всего","дисциплин и МДК",null,null,null,{"$f":"M67-M73-M74","v":612},{"$f":"N67-N73-N74","v":792},{"$f":"O27","v":540},756,396,576,360,288]
[]
["Государственная (итоговая) аттестация 6 недель (216 час)",null,null,null,null,null,null,null,"учебной практики",null,null,null,null,null,{"$f":"O65+O60+O55","v":72},{"$f":"P65+P60+P55","v":72},72,108,108,0]
["1. Программа углубленной подготовки ",null,null,null,null,null,null,null,"производст. практика/преддипломная практика",null,null,null,null,null,{"$f":"O66+O61+O56","v":0},{"$f":"P66+P61+P56","v":0},108,180,108,180]
["1.1. Дипломный проект (работа)",null,null,null,null,null,null,null,"экзаменов",null,null,null,"-",3,0,1,2,1,1,1]
["Выполнение дипломного проекта (работы) с 18.05 по 14.06 (всего 4 нед.)",null,null,null,null,null,null,null,"диф.зачетов",null,null,null,"-",8,3,1,4,3,2,3]
["Защита дипломного проекта (работы)  с 15.06 по 28.04 (всего 2 нед.)        ",null,null,null,null,null,null,null,"зачетов",null,null,null,"-",null,1,3,1,0,3,2]

{"sheet":"Лист3","index":3,"n_rows":8,"n_cols":10,"rows_kept":8,"cut":false,"hidden":true,"merged":[[0,9,0,36]]}
[null,null,1,5]
["очная",null,2,10,"основного общего образования"]
["заочная",null,3,null,"начального профессионального образования",null,null,null,null,"по программе базовой подготовки"]
["очно-заочная",null,4,null,"среднего (полного) общего образования",null,null,null,null,"по программе углубленной подготовки"]
[null,null,5]
[null,null,6]
[null,null,0,null,null,null,null,null,null,"по  специальности среднего профессионального образования"]
[null,null,null,null,null,null,null,null,null,"по  профессии начального профессионального образования"]

{"sheet":"Календарный график","index":4,"n_rows":39,"n_cols":54,"rows_kept":39,"cut":false,"hidden":false,"merged":[[18,29,18,30],[1,9,1,46],[3,1,5,1],[3,2,3,5],[3,7,3,9],[3,11,3,14],[3,15,3,18],[3,20,3,22],[3,24,3,27],[3,28,3,31],[3,33,3,35],[3,37,3,40],[3,41,3,44],[3,46,3,48],[3,50,3,53],[18,32,18,38],[11,49,11,53],[14,3,14,27],[16,4,16,5],[16,7,16,14],[16,17,16,18],[16,20,16,28],[16,29,16,30],[16,32,16,35],[16,39,16,40],[16,42,16,48],[18,4,18,5],[18,7,18,14],[18,17,18,18],[18,20,18,28]]}
[]
[null,null,null,null,null,null,null,null,null,"Календарный график учебного процесса"]
[]
[null,"Курс","Сентябрь",null,null,null,null,"Октябрь",null,null,null,"Ноябрь",null,null,null,"Декабрь",null,null,null,null,"Январь",null,null,null,"Февраль",null,null,null,"Март",null,null,null,null,"Апрель",null,null,null,"Май",null,null,null,"Июнь",null,null,null,null,"Июль",null,null,null,"Август"]
[null,null,1,8,15,22,29,6,13,20,27,3,10,17,24,1,8,15,22,29,2,9,16,23,2,9,16,23,2,9,16,23,30,6,13,20,27,4,11,18,25,1,8,15,22,29,6,13,20,27,3,10,17,24]
[null,null,7,14,21,28,5,12,19,26,2,9,16,23,30,7,14,21,28,4,8,15,22,1,8,15,22,1,8,15,22,29,5,12,19,26,3,19,17,24,31,7,14,21,28,5,12,19,26,2,9,16,23,31]
[null,1,null,null,null,null,null,null,null,null,null,null,null,null,null,null,null,null,null,"-","-",null,null,null,null,null,null,null,null,null,null,null,null,null,null,null,null,null,null,null,null,null,null,"А","А","-","-","-","-","-","-","-","-","-"]
[null,2,null,null,null,null,null,null,null,null,null,null,null,null,null,null,null,"ОУ","ОУ","-","-",null,null,null,null,null,null,null,null,null,null,null,null,null,null,null,null,null,null,null,null,null,"А","ОУ","ОУ","-","-","-","-","-","-","-","-","-"]
[null,3,null,null,null,null,null,null,null,null,"ОУ","ОУ",null,null,null,"ПП","ПП","ПП","А","-","-",null,null,null,null,null,null,null,null,null,null,null,null,null,null,null,null,"ОУ","ОУ","ОУ","А","ПП","ПП","ПП","ПП","ПП","-","-","-","-","-","-","-","-"]
[null,4,null,null,null,null,null,null,"ОУ","ОУ","ОУ",null,null,null,null,"ПП","ПП","ПП","А","-","-",null,null,null,null,null,null,"ПП","ПП","ПП","ПП","ПП",null,null,"А","ПД","ПД","ПД","ПД","ИА","ИА","ИА","ИА","ИА","ИА"]
[null,null,1,2,3,4,5,6,7,8,9,10,11,12,13,14,15,16,17,18,19,20,21,22,23,24,25,26,27,28,29,30,31,32,33,34,35,36,37,38,39,40,41,42,43,44,45,46,47,48,49,50,51,52]
[]
[]
[]
[null,null,null,"Условные обозначения"]
[]
[null,null,null,null,null,null,"-","Теоретическое обучение",null,null,null,null,null,null,null,null,null,"ПП",null,"-","Производственная практика",null,null,null,null,null,null,null,null,"-",null,"-","Каникулы",null,null,null,null,null,null,"ПД",null,"-","Преддипломная практика"]
[]
[null,null,null,null,"ОУ",null,"-","Учебная практика",null,null,null,null,null,null,null,null,null,"А",null,"-","Промежуточная атестация",null,null,null,null,null,null,null,null,"ИА",null,"-","Итоговая аттестация"]
[]
[]
[]
[]
[]
[null,null,null,null,null,null,null,null,null,null,null,null,null,null,null,null,null,null,null,null,null,null,null,null,null,null,null,null,null,null,null,null,null,null,null,null,","]
[]
[]
[]
[]
[]
[]
[]
[]
[]
[]
[]
[]
[]
[null,null,null,null,null,null,null,null,null,null,null,null,null,null,null,null,null,null,null,null,null,null,null,null,null,null,null,null,null,null,null,null,null,null,null,null,","]

{"sheet":"Перечень кабинетов","index":5,"n_rows":37,"n_cols":2,"rows_kept":37,"cut":false,"hidden":false,"merged":[]}
[null,"Перечень кабинетов, лабораторий, мастерских и др. для подготовки"]
[null," по специальности СПО"]
["№","Наименование"]
[null,"Кабинеты:"]
[1,"социально-экономических дисциплин;"]
[2,"иностранных языков;"]
[3,"математики;"]
[4,"информатики;"]
[5,"автоматизированных информационных систем;"]
[6,"инженерной графики;"]
[7,"технической механики;"]
[8,"древесиноведения и материаловедения;"]
[9,"метрологии, стандартизации и сертификации;"]
[10,"электротехники и электроники;"]
[11,"правового обеспечения профессиональной деятельности;"]
[12,"экономики организации;"]
[13,"безопасности жизнедеятельности;"]
[14,"гидротермической обработки и консервирования древесины; "]
[15,"лесопильного производства;"]
[16,"мебельного и столярно-строительного производств; "]
[17,"фанерного, плитного и других деревообрабатывающих производств."]
[null,"Лаборатории:"]
[1,"технической механики;"]
[2,"древесиноведения и материаловедения;"]
[3,"информационных технологий в профессиональной деятельности"]
[4,"электротехники, электроники и автоматизации;"]
[5,"режущего инструмента деревообрабатывающего производства; "]
[6,"технологического оборудования деревообрабатывающего производства."]
[null,"Мастеские:"]
[1,"деревообработки. "]
[null,"Спортивный комплекс:"]
[1,"спортивный зал;"]
[2,"спортивная площадка;"]
[3,"стрелковый тир (в любой модификации, включая электронный) или место для стрельбы"]
[null," Залы:"]
[1,"библиотека, читальный зал с выходом в сеть Интернет;"]
[2,"актовый зал"]